fUST/lending_fUST_20260703
["ID","MTS","AMOUNT","RATE_DAILY","PERIOD"]
[426959197,1783067432000,-253.0,0.00028,2]
[426959200,1783067432000,-167.0,0.00028,2]
[426959211,1783067432000,-500.0,0.00028045,2]
[426959213,1783067432000,-500.0,0.00028045,2]
[426959219,1783067432000,-500.0,0.00028045,2]
[426959224,1783067432000,-500.0,0.00028045,2]
[426959240,1783067432000,-615.59592013,0.00028045,2]
[426959215,1783067432000,-500.0,0.00028045,2]
[426959222,1783067432000,-500.0,0.00028045,2]
[426959228,1783067432000,-186.80514656,0.00028045,2]
[426959230,1783067432000,-313.19485344,0.00028045,2]
[426959226,1783067432000,-500.0,0.00028045,2]
[426959232,1783067432000,-500.0,0.00028045,2]
[426959234,1783067432000,-500.0,0.00028045,2]
[426959236,1783067432000,-500.0,0.00028045,2]
[426959238,1783067432000,-500.0,0.00028045,2]
[426959242,1783067432000,-500.0,0.00028045,2]
[426959244,1783067432000,-2.89282903,0.00028045,2]
[426959220,1783067432000,-500.0,0.00028045,2]
[426959367,1783067438000,-311.19110931,0.00028045,2]
[426959365,1783067438000,-994.0,0.00028045,2]
[426959388,1783067438000,-994.0,0.00028045,2]
[426959358,1783067438000,-994.0,0.00028045,2]
[426959352,1783067438000,-500.0,0.00028045,2]
[426959362,1783067438000,-994.0,0.00028045,2]
[426959360,1783067438000,-500.0,0.00028045,2]
[426959369,1783067438000,-994.0,0.00028045,2]
[426959382,1783067438000,-994.0,0.00028045,2]
[426959371,1783067438000,-994.0,0.00028045,2]
[426959373,1783067438000,-994.0,0.00028045,2]
[426959375,1783067438000,-994.0,0.00028045,2]
[426959380,1783067438000,-994.0,0.00028045,2]
[426959378,1783067438000,-994.0,0.00028045,2]
[426959356,1783067438000,-500.0,0.00028045,2]
[426959384,1783067438000,-994.0,0.00028045,2]
[426959386,1783067438000,-994.0,0.00028045,2]
[426959364,1783067438000,-500.0,0.00028045,2]
[426959354,1783067438000,-994.0,0.00028045,2]
[426959344,1783067438000,-500.0,0.00028045,2]
[426959346,1783067438000,-994.0,0.00028045,2]
[426959323,1783067438000,-500.0,0.00028044,2]
[426959325,1783067438000,-374.82560484,0.00028044,2]
[426959327,1783067438000,-497.10717097,0.00028045,2]
[426959329,1783067438000,-500.0,0.00028045,2]
[426959314,1783067438000,-500.0,0.00028044,2]
[426959319,1783067438000,-543.45393604,0.00028044,2]
[426959317,1783067438000,-500.0,0.00028044,2]
[426959315,1783067438000,-203.91353918,0.00028044,2]
[426959321,1783067438000,-500.0,0.00028044,2]
[426959331,1783067438000,-494.91381799,0.00028045,2]
[426959333,1783067438000,-161.55540064,0.00028045,2]
[426959337,1783067438000,-597.91981817,0.00028045,2]
[426959342,1783067438000,-500.0,0.00028045,2]
[426959339,1783067438000,-151.5,0.00028045,2]
[426959350,1783067438000,-994.0,0.00028045,2]
[426959341,1783067438000,-500.0,0.00028045,2]
[426959335,1783067438000,-500.0,0.00028045,2]
[426959348,1783067438000,-500.0,0.00028045,2]
[426959390,1783067438000,-994.0,0.00028045,2]
[426959376,1783067438000,-994.0,0.00028045,2]
[426959392,1783067438000,-994.0,0.00028045,2]
[426959440,1783067438000,-500.0,0.0002849,60]
[426959435,1783067438000,-500.0,0.0002849,60]
[426959444,1783067438000,-500.0,0.0002849,60]
[426959448,1783067438000,-500.0,0.0002849,60]
[426959446,1783067438000,-500.0,0.0002849,60]
[426959452,1783067438000,-500.0,0.0002849,60]
[426959394,1783067438000,-994.0,0.00028045,2]
[426959455,1783067438000,-509.42551336,0.0002849,60]
[426959437,1783067438000,-500.0,0.0002849,60]
[426959459,1783067438000,-192.669242,0.0002868,14]
[426959467,1783067438000,-500.0,0.00028763,3]
[426959465,1783067438000,-500.0,0.00028763,2]
[426959463,1783067438000,-500.0,0.00028763,2]
[426959457,1783067438000,-194.962925,0.0002868,14]
[426959475,1783067438000,-161.77,0.00028818,15]
[426959469,1783067438000,-500.0,0.00028763,3]
[426959477,1783067438000,-174.66766729,0.00028838,2]
[426959473,1783067438000,-161.76,0.00028768,15]
[426959461,1783067438000,-500.0,0.00028763,2]
[426959433,1783067438000,-500.0,0.0002849,60]
[426959450,1783067438000,-500.0,0.0002849,60]
[426959429,1783067438000,-509.5957615,0.0002849,60]
[426959431,1783067438000,-156.047804,0.0002849,7]
[426959404,1783067438000,-500.0,0.00028216,60]
[426959396,1783067438000,-994.0,0.00028045,2]
[426959400,1783067438000,-6409.13921863,0.00028116,2]
[426959402,1783067438000,-481.20425865,0.00028149,2]
[426959405,1783067438000,-150.67466267,0.00028216,2]
[426959407,1783067438000,-150.67466267,0.00028216,2]
[426959471,1783067438000,-500.0,0.00028763,3]
[426959411,1783067438000,-186.0,0.00028322,2]
[426959398,1783067438000,-183.72,0.00028069,2]
[426959413,1783067438000,-446.0,0.00028322,2]
[426959415,1783067438000,-150.0,0.00028422,2]
[426959417,1783067438000,-150.0,0.00028422,2]
[426959425,1783067438000,-500.0,0.00028489,2]
[426959427,1783067438000,-500.0,0.00028489,2]
[426959419,1783067438000,-779.03597775,0.00028422,2]
[426959423,1783067438000,-500.0,0.00028489,2]
[426959421,1783067438000,-161.783,0.00028422,19]
[426959409,1783067438000,-154.58727462,0.00028221,2]
[426959499,1783067439000,-500.0,0.0002903,3]
[426959493,1783067439000,-500.0,0.00029029,2]
[426959511,1783067439000,-500.0,0.0002903,3]
[426959509,1783067439000,-500.0,0.0002903,3]
[426959507,1783067439000,-500.0,0.0002903,3]
[426959495,1783067439000,-500.0,0.0002903,2]
[426959505,1783067439000,-500.0,0.0002903,3]
[426959503,1783067439000,-500.0,0.0002903,3]
[426959481,1783067439000,-200.0,0.0002896,120]
[426959497,1783067439000,-500.0,0.0002903,2]
[426959491,1783067439000,-513.29,0.00029028,3]
[426959489,1783067439000,-171.09,0.00029028,3]
[426959487,1783067439000,-342.17,0.00029028,3]
[426959485,1783067439000,-253.0,0.00029,2]
[426959483,1783067439000,-155.0,0.00029,2]
[426959479,1783067439000,-757.10106328,0.00028938,2]
[426959501,1783067439000,-500.0,0.0002903,3]
[426959514,1783067439000,-500.0,0.0002903,3]
[426959516,1783067439000,-500.0,0.0002903,3]
[426959527,1783067439000,-500.0,0.00029037,2]
[426959534,1783067439000,-1000.0,0.00029037,2]
[426959537,1783067439000,-1000.0,0.00029037,2]
[426959553,1783067439000,-27388.51622844,0.00029038,30]
[426959539,1783067439000,-1000.0,0.00029037,2]
[426959541,1783067439000,-1000.0,0.00029037,2]
[426959547,1783067439000,-1000.0,0.00029037,2]
[426959550,1783067439000,-233987.47713664,0.00029038,30]
[426959548,1783067439000,-1000.0,0.00029037,2]
[426959535,1783067439000,-1000.0,0.00029037,2]
[426959543,1783067439000,-1000.0,0.00029037,2]
[426959545,1783067439000,-1000.0,0.00029037,2]
[426959523,1783067439000,-500.0,0.00029037,2]
[426959519,1783067439000,-487.0,0.00029031,2]
[426959517,1783067439000,-238.6150944,0.0002903,3]
[426959521,1783067439000,-876.07,0.00029031,2]
[426959530,1783067439000,-550.54528558,0.00029037,2]
[426959532,1783067439000,-1000.0,0.00029037,2]
[426959525,1783067439000,-500.0,0.00029037,2]
[426959872,1783067443000,-18968.59444031,0.00029038,30]
[426959870,1783067443000,-994.0,0.00028045,2]
[426959869,1783067443000,-994.0,0.00028045,2]
[426959871,1783067443000,-4912.54410698,0.00029038,30]
[426959879,1783067446000,-1010.542797,0.00028045,2]
[426959880,1783067446000,-3749.29219786,0.00029038,30]
[426959881,1783067447000,-118979.05628365,0.00029038,30]
[426959882,1783067519000,500.0,0.00023256,2]
[426959883,1783067522000,500.0,0.00022093,2]
[426959885,1783067524000,361.10019577,0.00023938,2]
[426959884,1783067524000,180.55009789,0.00022958,2]
[426959886,1783067545000,-500.0,0.00024419,2]
[426959887,1783067562000,-541.65029366,0.00024592,2]
[426959889,1783067631000,380.095784,0.0002868,120]
[426959890,1783067667000,190.047892,0.0002868,120]
[426959894,1783067836000,-248.8343392,0.00020729,14]
[426959895,1783067889000,-478.97004007,0.00024419,7]
[426959896,1783067900000,-151.0,0.00021385,2]
[426959901,1783067953000,-151.0,0.00020744,2]
[426959902,1783068007000,-151.0,0.00020122,2]
[426959920,1783068060000,-139.87994705,0.00024419,7]
[426959924,1783068113000,-179.99618775,0.00022385,2]
[426959927,1783068166000,-271.72,0.00022641,3]
[426959928,1783068220000,-156.04687032,0.00022859,2]
[426959929,1783068273000,-500.0,0.00024907,7]
[426959930,1783068365000,210.445273,0.0002846,120]
[426959931,1783068441000,210.445273,0.0002846,120]
[426959932,1783068512000,1000.39422425,0.00015,2]
[426959947,1783068552000,-500.0,0.00023841,2]
[426959951,1783068552000,-500.0,0.00023841,2]
[426959948,1783068552000,-500.0,0.00023841,2]
[426959946,1783068552000,-500.0,0.00023841,2]
[426959949,1783068552000,-500.0,0.00023841,2]
[426959944,1783068552000,-500.0,0.00023841,2]
[426959937,1783068552000,-7325.27332874,0.00021,2]
[426959950,1783068552000,-500.0,0.00023841,2]
[426959943,1783068552000,-166.66666666,0.00023742,2]
[426959940,1783068552000,-338.91692114,0.000222,2]
[426959939,1783068552000,-1060.60135556,0.000215,2]
[426959941,1783068552000,-208.58264999,0.00022862,2]
[426959938,1783068552000,-1290.43406414,0.00021,2]
[426959942,1783068552000,-152.99675958,0.000232,2]
[426959952,1783068552000,-500.0,0.00023841,2]
[426959945,1783068552000,-500.0,0.00023841,2]
[426959954,1783068552000,-500.0,0.00023841,2]
[426959967,1783068552000,-500.0,0.00023841,2]
[426959968,1783068552000,-500.0,0.00023841,2]
[426959966,1783068552000,-206.62350691,0.00023841,2]
[426959965,1783068552000,-500.0,0.00023841,2]
[426959963,1783068552000,-500.0,0.00023841,2]
[426959964,1783068552000,-500.0,0.00023841,2]
[426959960,1783068552000,-500.0,0.00023841,2]
[426959953,1783068552000,-500.0,0.00023841,2]
[426959961,1783068552000,-500.0,0.00023841,2]
[426959958,1783068552000,-500.0,0.00023841,2]
[426959959,1783068552000,-500.0,0.00023841,2]
[426959957,1783068552000,-500.0,0.00023841,2]
[426959956,1783068552000,-500.0,0.00023841,2]
[426959955,1783068552000,-500.0,0.00023841,2]
[426959962,1783068552000,-500.0,0.00023841,2]
[426959987,1783068553000,-500.0,0.00023841,2]
[426959988,1783068553000,-500.0,0.00023841,2]
[426959985,1783068553000,-500.0,0.00023841,2]
[426959983,1783068553000,-500.0,0.00023841,2]
[426959984,1783068553000,-500.0,0.00023841,2]
[426959979,1783068553000,-500.0,0.00023841,2]
[426959980,1783068553000,-500.0,0.00023841,2]
[426959982,1783068553000,-511.65692176,0.00023841,2]
[426959981,1783068553000,-500.0,0.00023841,2]
[426959977,1783068553000,-500.0,0.00023841,2]
[426959976,1783068553000,-500.0,0.00023841,2]
[426959978,1783068553000,-500.0,0.00023841,2]
[426959989,1783068553000,-500.0,0.00023841,2]
[426959973,1783068553000,-500.0,0.00023841,2]
[426959972,1783068553000,-500.0,0.00023841,2]
[426959974,1783068553000,-500.0,0.00023841,2]
[426959970,1783068553000,-500.0,0.00023841,2]
[426959971,1783068553000,-500.0,0.00023841,2]
[426959969,1783068553000,-500.0,0.00023841,2]
[426959975,1783068553000,-500.0,0.00023841,2]
[426959990,1783068553000,-500.0,0.00023841,2]
[426959986,1783068553000,-500.0,0.00023841,2]
[426959992,1783068553000,-500.0,0.00023841,2]
[426960010,1783068553000,-204.94466817,0.00024592,2]
[426960012,1783068553000,-222.61311365,0.00024825,2]
[426960011,1783068553000,-252.38541508,0.00024825,2]
[426959991,1783068553000,-500.0,0.00023841,2]
[426960005,1783068553000,-417.16529998,0.00023842,2]
[426960006,1783068553000,-456.46194546,0.00023866,2]
[426960007,1783068553000,-171.42340645,0.00024495,2]
[426960008,1783068553000,-180.45068035,0.00024592,2]
[426960004,1783068553000,-500.0,0.00023841,2]
[426960003,1783068553000,-300.0,0.00023841,2]
[426960009,1783068553000,-167.1748134,0.00024592,2]
[426960002,1783068553000,-200.0,0.00023841,2]
[426960000,1783068553000,-500.0,0.00023841,2]
[426959995,1783068553000,-500.0,0.00023841,2]
[426959999,1783068553000,-500.0,0.00023841,2]
[426959996,1783068553000,-500.0,0.00023841,2]
[426959997,1783068553000,-500.0,0.00023841,2]
[426959998,1783068553000,-500.0,0.00023841,2]
[426959994,1783068553000,-500.0,0.00023841,2]
[426960001,1783068553000,-500.0,0.00023841,2]
[426959993,1783068553000,-500.0,0.00023841,2]
[426960022,1783068554000,-155.82917955,0.00024825,2]
[426960025,1783068554000,-500.0,0.00024825,2]
[426960023,1783068554000,-500.0,0.00024825,2]
[426960024,1783068554000,-500.0,0.00024825,2]
[426960021,1783068554000,-500.0,0.00024825,2]
[426960019,1783068554000,-500.0,0.00024825,2]
[426960016,1783068554000,-500.0,0.00024825,2]
[426960020,1783068554000,-500.0,0.00024825,2]
[426960017,1783068554000,-500.0,0.00024825,2]
[426960015,1783068554000,-500.0,0.00024825,2]
[426960014,1783068554000,-500.0,0.00024825,2]
[426960013,1783068554000,-500.0,0.00024825,2]
[426960027,1783068554000,-500.0,0.00024825,2]
[426960018,1783068554000,-500.0,0.00024825,2]
[426960026,1783068554000,-500.0,0.00024825,2]
[426960036,1783068554000,-252.38541506,0.00024927,2]
[426960029,1783068554000,-3757.82250323,0.00024826,2]
[426960028,1783068554000,-398.89186906,0.00024825,2]
[426960041,1783068554000,-500.0,0.00024999,2]
[426960043,1783068554000,-185.0,0.00025,7]
[426960042,1783068554000,-500.0,0.00024999,2]
[426960040,1783068554000,-342.84681291,0.0002493,2]
[426960037,1783068554000,-173.18188097,0.00024927,2]
[426960039,1783068554000,-624.18748127,0.00024928,2]
[426960044,1783068554000,-32901.92466844,0.00025,7]
[426960035,1783068554000,-500.0,0.00024927,2]
[426960034,1783068554000,-118.84998712,0.00024907,7]
[426960031,1783068554000,-252.38541506,0.00024876,2]
[426960030,1783068554000,-252.38541506,0.00024851,2]
[426960033,1783068554000,-252.38541506,0.00024902,2]
[426960032,1783068554000,-173.18188097,0.00024876,2]
[426960038,1783068554000,-500.0,0.00024927,2]
[426960045,1783068561000,-10526.11013059,0.00023741,2]
[426960046,1783068561000,-7333.45859607,0.00025,7]
[426960047,1783068564000,-974.56913985,0.00025,7]
[426960049,1783068571000,-49908.51461896,0.00025,7]
[426960052,1783068624000,-204.34748318,0.00022862,2]
[426960087,1783068632000,-307.64723082,0.00023842,2]
[426960091,1783068632000,-613.04244953,0.00024496,2]
[426960096,1783068632000,-10.13279679,0.000249,2]
[426960089,1783068632000,-101.04773553,0.00023842,2]
[426960098,1783068632000,-409.88933633,0.00024931,2]
[426960093,1783068632000,-163.04908418,0.000249,2]
[426960099,1783068632000,-45.45260903,0.00025,7]
[426960102,1783068632000,-368.72774339,0.00025,7]
[426960111,1783068632000,-866.54942417,0.00025,7]
[426960104,1783068632000,-2720.5219509,0.00025,7]
[426960106,1783068632000,-1003.0,0.00025,7]
[426960108,1783068632000,-3561.64409522,0.00025,7]
[426960244,1783068638000,-28031.90020872,0.00025,7]
[426960216,1783068638000,-78358.33467243,0.00025,7]
[426960323,1783068640000,-2423.59866296,0.00025,7]
[426960322,1783068640000,-364.124706,0.00025,7]
[426960398,1783068650000,-338.0,0.00025,7]
[426960399,1783068650000,-3488.00109587,0.00025,7]
[426960409,1783068933000,9728.29132513,0.0001,2]
[426960410,1783068994000,2920.18010656,0.0001,2]
[426960411,1783069015000,-151.0,0.00021534,2]
[426960414,1783069069000,797.63903741,0.00028,120]
[426960413,1783069069000,-163.63250448,0.000222,7]
[426960415,1783069084000,483.2399964,0.0001,2]
[426960416,1783069122000,-294.95461596,0.00022611,7]
[426960417,1783069175000,-163.9981816,0.00023875,2]
[426960418,1783069229000,-169.291983,0.00023827,2]
[426960419,1783069282000,-226.6684676,0.00023827,2]
[426960420,1783069335000,-500.0,0.00023874,2]
[426960422,1783069389000,-291.45962627,0.00023874,2]
[426960423,1783069401000,-208.54037373,0.00023874,2]
[426960424,1783069454000,-500.0,0.00023797,2]
[426960427,1783069542000,-500.0,0.00023796,2]
[426960430,1783069542000,-500.0,0.00023796,2]
[426960429,1783069542000,-500.0,0.00023796,2]
[426960428,1783069542000,-500.0,0.00023796,2]
[426960431,1783069542000,-500.0,0.00023796,2]
[426960433,1783069542000,-500.0,0.00023796,2]
[426960434,1783069542000,-250.53188591,0.00023796,2]
[426960432,1783069542000,-500.0,0.00023796,2]
[426960435,1783069627000,-1415.44804252,0.000234,2]
[426960437,1783069646000,-500.0,0.00023872,2]
[426960438,1783069646000,-2266.96257846,0.00023875,2]
[426960436,1783069646000,-3986.49625298,0.000234,2]
[426960443,1783069753000,-395.70187937,0.000239,2]
[426960441,1783069753000,-500.0,0.00023874,2]
[426960442,1783069753000,-10373.61409074,0.00023875,2]
[426960440,1783069753000,-170.99543045,0.00023838,2]
[426960445,1783069753000,-341.99086089,0.00024492,2]
[426960444,1783069753000,-690.489949,0.00023905,2]
[426960452,1783069753000,-194.36,0.00024907,7]
[426960447,1783069753000,-193.41,0.0002477,7]
[426960449,1783069753000,-521.58482117,0.00024896,2]
[426960451,1783069753000,-191.08496197,0.00024899,2]
[426960448,1783069753000,-152.99675958,0.00024838,2]
[426960450,1783069753000,-9738.3574482,0.00024899,2]
[426960446,1783069753000,-412.96461438,0.0002465,2]
[426960453,1783069756000,500.0,0.00023874,2]
[426960454,1783069756000,500.0,0.00023874,2]
[426960455,1783069756000,500.0,0.00023874,2]
[426960456,1783069756000,379.35872403,0.00023874,2]
[426960457,1783069793000,-166.66666666,0.00023774,2]
[426960505,1783069832000,-500.0,0.00023873,2]
[426960511,1783069832000,-500.0,0.00023873,2]
[426960509,1783069832000,-492.02369316,0.00023873,2]
[426960507,1783069832000,-500.0,0.00023873,2]
[426960501,1783069832000,-343.33744335,0.00023873,2]
[426960515,1783069832000,-500.0,0.00023873,2]
[426960499,1783069832000,-456.42783401,0.00023873,2]
[426960496,1783069832000,-43.57216599,0.00023873,2]
[426960494,1783069832000,-214.35783802,0.00023873,2]
[426960492,1783069832000,-156.364,0.00023774,2]
[426960503,1783069832000,-156.66255665,0.00023873,2]
[426960517,1783069832000,-500.0,0.00023873,2]
[426960528,1783069832000,-500.0,0.00023873,2]
[426960519,1783069832000,-500.0,0.00023873,2]
[426960513,1783069832000,-500.0,0.00023873,2]
[426960541,1783069832000,-500.0,0.00023873,2]
[426960543,1783069832000,-409.78899033,0.00023873,2]
[426960548,1783069832000,-215.49248696,0.00023873,2]
[426960546,1783069832000,-90.21100967,0.00023873,2]
[426960536,1783069832000,-183.26720118,0.00024911,2]
[426960532,1783069832000,-500.0,0.00024896,2]
[426960530,1783069832000,-170.99543045,0.00024492,2]
[426960526,1783069832000,-500.0,0.00023873,2]
[426960523,1783069832000,-500.0,0.00023873,2]
[426960521,1783069832000,-500.0,0.00023873,2]
[426960534,1783069832000,-500.0,0.0002491,2]
[426960800,1783069846000,-500.0,0.00023873,2]
[426960784,1783069846000,-500.0,0.00023873,2]
[426960802,1783069846000,-500.0,0.00023873,2]
[426960786,1783069846000,-500.0,0.00023873,2]
[426960790,1783069846000,-500.0,0.00023873,2]
[426960791,1783069846000,-500.0,0.00023873,2]
[426960789,1783069846000,-500.0,0.00023873,2]
[426960788,1783069846000,-500.0,0.00023873,2]
[426960780,1783069846000,-58.46411318,0.00023873,2]
[426960785,1783069846000,-500.0,0.00023873,2]
[426960783,1783069846000,-500.0,0.00023873,2]
[426960781,1783069846000,-441.53588682,0.00023873,2]
[426960782,1783069846000,-500.0,0.00023873,2]
[426960779,1783069846000,-500.0,0.00023873,2]
[426960778,1783069846000,-284.50751304,0.00023873,2]
[426960797,1783069846000,-500.0,0.00023873,2]
[426960787,1783069846000,-500.0,0.00023873,2]
[426960799,1783069846000,-57.2879466,0.00023873,2]
[426960814,1783069846000,-500.0,0.00023873,2]
[426960795,1783069846000,-500.0,0.00023873,2]
[426960793,1783069846000,-500.0,0.00023873,2]
[426960812,1783069846000,-500.0,0.00023873,2]
[426960813,1783069846000,-500.0,0.00023873,2]
[426960809,1783069846000,-500.0,0.00023873,2]
[426960810,1783069846000,-500.0,0.00023873,2]
[426960807,1783069846000,-500.0,0.00023873,2]
[426960808,1783069846000,-500.0,0.00023873,2]
[426960806,1783069846000,-500.0,0.00023873,2]
[426960811,1783069846000,-500.0,0.00023873,2]
[426960815,1783069846000,-334.1673906,0.00023873,2]
[426960805,1783069846000,-500.0,0.00023873,2]
[426960803,1783069846000,-500.0,0.00023873,2]
[426960798,1783069846000,-442.7120534,0.00023873,2]
[426960796,1783069846000,-500.0,0.00023873,2]
[426960794,1783069846000,-500.0,0.00023873,2]
[426960792,1783069846000,-500.0,0.00023873,2]
[426960804,1783069846000,-500.0,0.00023873,2]
[426960801,1783069846000,-500.0,0.00023873,2]
[426960836,1783069847000,-500.0,0.00023873,2]
[426960838,1783069847000,-11327.04215522,0.00024911,2]
[426960851,1783069847000,-500.0,0.00024998,2]
[426960854,1783069847000,-1000.0,0.00024999,2]
[426960856,1783069847000,-1000.0,0.00024999,2]
[426960858,1783069847000,-1038.76234251,0.00024999,2]
[426960853,1783069847000,-1000.0,0.00024999,2]
[426960860,1783069847000,-500.0,0.00024999,2]
[426960839,1783069847000,-2415.6829795,0.00024919,2]
[426960863,1783069847000,-500.0,0.00024999,2]
[426960834,1783069847000,-11.89048766,0.00023873,2]
[426960822,1783069847000,-500.0,0.00023873,2]
[426960845,1783069847000,-379.49,0.0002499,3]
[426960843,1783069847000,-151.0,0.00024932,7]
[426960841,1783069847000,-341.99086089,0.00024927,2]
[426960824,1783069847000,-488.10951234,0.00023873,2]
[426960821,1783069847000,-500.0,0.00023873,2]
[426960817,1783069847000,-500.0,0.00023873,2]
[426960819,1783069847000,-330.65255258,0.00023873,2]
[426960816,1783069847000,-500.0,0.00023873,2]
[426960818,1783069847000,-500.0,0.00023873,2]
[426960862,1783069847000,-500.0,0.00024999,2]
[426960849,1783069847000,-569.26,0.0002499,3]
[426960871,1783069847000,-500.0,0.00024999,2]
[426960847,1783069847000,-189.74,0.0002499,3]
[426960873,1783069847000,-500.0,0.00024999,2]
[426960866,1783069847000,-500.0,0.00024999,2]
[426960906,1783069847000,-471.95955929,0.00025383,2]
[426960905,1783069847000,-334.34962681,0.00025027,2]
[426960903,1783069847000,-151.0,0.00025,7]
[426960902,1783069847000,-4305.50142215,0.00025,7]
[426960899,1783069847000,-4902.37248574,0.00025,7]
[426960898,1783069847000,-19.88916612,0.00025,7]
[426960900,1783069847000,-13684.28957432,0.00025,7]
[426960901,1783069847000,-1974.63957015,0.00025,7]
[426960907,1783069847000,-500.0,0.0002564,2]
[426960897,1783069847000,-613.18513893,0.00025,7]
[426960888,1783069847000,-107154.18365376,0.00025,7]
[426960904,1783069847000,-360.9013607,0.00025027,2]
[426960881,1783069847000,-315.28,0.00024999,2]
[426960890,1783069847000,-748.63596305,0.00025,7]
[426960867,1783069847000,-500.0,0.00024999,2]
[426960875,1783069847000,-500.0,0.00024999,2]
[426960879,1783069847000,-500.0,0.00024999,2]
[426960882,1783069847000,-1284.40143039,0.00025,7]
[426960869,1783069847000,-448.38480285,0.00024999,2]
[426960892,1783069847000,-6025.26593612,0.00025,7]
[426960895,1783069847000,-572.03708966,0.00025,7]
[426960877,1783069847000,-500.0,0.00024999,2]
[426960886,1783069847000,-3124.0,0.00025,2]
[426960884,1783069847000,-433.45811007,0.00025,2]
[426960930,1783069848000,-231.29827902,0.00027397,30]
[426960934,1783069848000,-300.0,0.000275,14]
[426960929,1783069848000,-618.84998715,0.00027349,7]
[426960938,1783069848000,-151.0,0.0002761,7]
[426960931,1783069848000,-178.18415637,0.00027397,7]
[426960933,1783069848000,-190.0,0.00027499,2]
[426960932,1783069848000,-180.0,0.00027498,2]
[426960935,1783069848000,-325.8,0.00027586,2]
[426960937,1783069848000,-3000.0,0.0002761,2]
[426960944,1783069848000,-76.73620882,0.0002762,7]
[426960941,1783069848000,-525.12052342,0.0002762,2]
[426960940,1783069848000,-1631.70070555,0.0002762,2]
[426960943,1783069848000,-74.26379118,0.0002762,7]
[426960942,1783069848000,-151.0,0.0002762,7]
[426960945,1783069848000,-151.0,0.0002762,7]
[426960949,1783069848000,-151.0,0.00027632,7]
[426960951,1783069848000,-3588.168936,0.0002764,2]
[426960939,1783069848000,-843.17877103,0.0002762,2]
[426960936,1783069848000,-3000.0,0.000276,2]
[426960927,1783069848000,-1314.550777,0.00027215,2]
[426960918,1783069848000,-300.0,0.000265,14]
[426960928,1783069848000,-300.0,0.00027348,4]
[426960908,1783069848000,-618.84998712,0.0002564,7]
[426960910,1783069848000,-151.0,0.0002589,7]
[426960920,1783069848000,-454.99780226,0.00026786,2]
[426960911,1783069848000,-300.0,0.00026,14]
[426960913,1783069848000,-736.69937457,0.00026116,2]
[426960912,1783069848000,-1314.550777,0.00026116,2]
[426960916,1783069848000,-618.84998712,0.00026372,7]
[426960948,1783069848000,-151.0,0.0002763,7]
[426960926,1783069848000,-155.0,0.00027185,7]
[426960909,1783069848000,-300.0,0.0002589,2]
[426960914,1783069848000,-758.98,0.0002636,3]
[426960917,1783069848000,-160.0,0.00026397,3]
[426960915,1783069848000,-379.48,0.0002636,3]
[426960922,1783069848000,-182.8,0.00026873,3]
[426960921,1783069848000,-710.22313197,0.00026786,2]
[426960923,1783069848000,-191.08496197,0.00026949,2]
[426960925,1783069848000,-9738.35744819,0.00027105,2]
[426960924,1783069848000,-300.0,0.00027,14]
[426960919,1783069848000,-205.30313604,0.00026559,2]
[426960950,1783069848000,-151.0,0.00027632,7]